fUSD/lending_fUSD_20240103
["ID","MTS","AMOUNT","RATE_DAILY","PERIOD"]
[310046349,1704297126044,-332.636443,0.000341,2]
[310046350,1704297126054,-249.819426,0.000341,2]
[310046351,1704297126066,-212.0,0.0003412,2]
[310046352,1704297126078,-456.40103,0.00034148,2]
[310046353,1704297126088,-207.0,0.0003415,2]
[310046354,1704297126099,-208.0,0.0003415,2]
[310046355,1704297126109,-2574.45265301,0.00034186,6]
[310046356,1704297126120,-567.40103,0.00034198,2]
[310046357,1704297126131,-8000.0,0.000342,2]
[310046358,1704297126142,-173.81,0.00034247,120]
[310046359,1704297126153,-567.40103,0.00034248,2]
[310046360,1704297126163,-567.40103,0.00034298,2]
[310046361,1704297126175,-150.8337322,0.00034342,2]
[310046362,1704297126186,-567.40103,0.00034348,2]
[310046363,1704297126197,-205.67300799,0.00034376,23]
[310046364,1704297126208,-567.40103,0.00034398,2]
[310046365,1704297126218,-507.2,0.00034426,2]
[310046366,1704297126228,-151.74559818,0.00034429,30]
[310046367,1704297126238,-2574.45265301,0.0003444,6]
[310046368,1704297126249,-567.40103,0.00034448,2]
[310046369,1704297126260,-160.0,0.00034451,3]
[310046370,1704297126270,-2985.4990471,0.00034476,2]
[310046371,1704297126281,-205.0,0.00034479,10]
[310046372,1704297126292,-209.0,0.0003449,2]
[310046373,1704297126302,-567.40103,0.00034498,2]
[310046374,1704297126312,-807.0,0.000345,2]
[310046375,1704297126323,-1000.0,0.000345,5]
[310046376,1704297126333,-1000.0,0.000345,5]
[310046377,1704297126344,-4999.99,0.000345,2]
[310046378,1704297126354,-5000.0,0.000345,2]
[310046379,1704297126365,-437.68,0.000345,2]
[310046380,1704297126375,-212.0,0.0003451,2]
[310046381,1704297126386,-311.75,0.00034518,2]
[310046382,1704297126396,-207.0,0.0003452,2]
[310046383,1704297126589,-208.0,0.0003452,2]
[310046384,1704297126600,-60622.763082,0.0003452,2]
[310046385,1704297126611,-10121.673066,0.0003452,2]
[310046386,1704297126622,-498.128644,0.0003452,2]
[310046387,1704297126632,-27696.71756,0.0003452,2]
[310046388,1704297126642,-4732.222119,0.0003452,2]
[310046389,1704297126653,-1971.6581365,0.0003454,2]
[310046390,1704297126664,-567.40103,0.00034548,2]
[310046391,1704297126674,-436.76,0.00034551,2]
[310046392,1704297126684,-22415.94995693,0.00034551,2]
[310046393,1704297126694,-2200007.25450261,0.00034564,2]
[310046394,1704297126704,-200000.0,0.00034569,10]
[310046395,1704297126714,-200000.0,0.00034569,10]
[310046396,1704297126724,-567.40103,0.00034598,2]
[310046397,1704297126734,-24875.49612012,0.00034598,2]
[310046398,1704297126745,-508.76047636,0.00034599,2]
[310046399,1704297126756,-150.0,0.00034608,2]
[310046400,1704297126766,-149171.4287343,0.00034625,2]
[310046401,1704297126776,-12295.287288,0.00034646,2]
[310046402,1704297126787,-400.26,0.00034646,2]
[310046403,1704297126797,-400.26,0.00034646,2]
[310046404,1704297126807,-567.40103,0.00034648,2]
[310046405,1704297126817,-1755.74,0.00034648,2]
[310046406,1704297126828,-937.85,0.00034648,2]
[310046407,1704297126838,-937.85,0.00034648,2]
[310046408,1704297126851,-203804.0978902,0.00034649,2]
[310046409,1704297126862,-5000.0,0.0003465,2]
[310046410,1704297126874,-18419.33522904,0.0003465,2]
[310046411,1704297126884,-180.0,0.00034658,2]
[310046412,1704297126895,-190774.69136332,0.0003466,2]
[310046413,1704297126906,-104961.53293678,0.0003467,3]
[310046414,1704297126917,-170892.33914513,0.0003468,4]
[310046415,1704297126927,-2574.45265301,0.00034694,7]
[310046416,1704297126937,-567.40103,0.00034698,2]
[310046417,1704297126948,-20289.62243159,0.000347,7]
[310046418,1704297126958,-26659.70249711,0.000347,2]
[310046419,1704297126968,-938.0,0.0003471,2]
[310046420,1704297126979,-1234.0,0.0003471,2]
[310046421,1704297126989,-318.0,0.0003471,2]
[310046422,1704297126999,-611.419,0.0003471,2]
[310046423,1704297127009,-2894.0,0.0003471,2]
[310046424,1704297127020,-2265.0,0.0003471,2]
[310046425,1704297127030,-150.0,0.0003471,2]
[310046426,1704297127040,-1026.0,0.0003471,2]
[310046427,1704297127050,-660.95,0.00034719,2]
[310046428,1704297127060,-539.72,0.00034739,2]
[310046429,1704297127069,-4000.0,0.00034748,10]
[310046430,1704297127079,-567.40103,0.00034748,2]
[310046431,1704297127089,-1139.8863246,0.0003477,2]
[310046432,1704297127099,-4583.4211763,0.00034776,2]
[310046433,1704297127110,-36502.8176209,0.00034776,2]
[310046434,1704297127121,-710.92590431,0.00034785,2]
[310046435,1704297127131,-4311.55537073,0.00034792,2]
[310046436,1704297127142,-90934.144624,0.00034794,2]
[310046437,1704297127152,-15182.509599,0.00034794,2]
[310046438,1704297127162,-747.192966,0.00034794,2]
[310046439,1704297127171,-41545.076341,0.00034794,2]
[310046440,1704297127181,-7098.333178,0.00034794,2]
[310046441,1704297127190,-567.40103,0.00034798,2]
[310046442,1704297127200,-511416.79168705,0.000348,5]
[310046443,1704297127209,-716.0,0.000348,23]
[310046444,1704297127218,-3000.0,0.000348,2]
[310046445,1704297127228,-35000.0,0.000348,2]
[310046446,1704297127237,-1000.0,0.000348,16]
[310046447,1704297127247,-150.8337322,0.0003483,2]
[310046448,1704297127257,-2633.4081247,0.00034833,2]
[310046449,1704297127266,-567.40103,0.00034848,2]
[310046450,1704297127276,-1739.1332149,0.00034852,2]
[310046451,1704297127285,-50000.0,0.00034856,10]
[310046452,1704297127295,-50000.0,0.00034857,10]
[310046453,1704297127305,-50000.0,0.00034857,10]
[310046454,1704297127314,-567.40103,0.00034898,2]
[310046455,1704297127324,-513934.9686872,0.000349,3]
[310046456,1704297127333,-206859.33287349,0.000349,2]
[310046457,1704297127343,-1499.99999901,0.000349,2]
[310046458,1704297127353,-487.9164046,0.000349,4]
[310046459,1704297127362,-207.0,0.000349,2]
[310046460,1704297127372,-1000.0,0.000349,2]
[310046461,1704297127381,-450129.26232705,0.000349,2]
[310046462,1704297127392,-14842.54210668,0.000349,5]
[310046463,1704297127401,-209.0,0.000349,2]
[310046464,1704297127414,-208.0,0.000349,2]
[310046465,1704297127425,-212.0,0.000349,2]
[310046466,1704297127436,-12597.90776854,0.000349,2]
[310046467,1704297127448,-34035.91942384,0.000349,2]
[310046468,1704297127458,-209.0,0.000349,2]
[310046469,1704297127468,-172.152924,0.000349,2]
[310046470,1704297127479,-2009.6,0.000349,2]
[310046471,1704297127489,-200.0,0.000349,2]
[310046472,1704297127499,-249.42697959,0.000349,2]
[310046473,1704297127510,-317.84,0.000349,2]
[310046474,1704297127520,-1062.8886802,0.000349,2]
[310046475,1704297127530,-1553.7000594,0.000349,2]
[310046476,1704297127539,-1553.7000594,0.000349,2]
[310046477,1704297127549,-3977.28,0.00034904,2]
[310046478,1704297127558,-492.8,0.00034907,2]
[310046479,1704297127568,-151.74559818,0.00034929,30]
[310046480,1704297127577,-121245.526165,0.00034931,2]
[310046481,1704297127587,-20243.346132,0.00034931,2]
[310046482,1704297127597,-996.257288,0.00034931,2]
[310046483,1704297127607,-55393.435121,0.00034931,2]
[310046484,1704297127619,-9464.444238,0.00034931,2]
[310046485,1704297127629,-567.40103,0.00034948,2]
[310046486,1704297127639,-1506.6082932,0.00034976,2]
[310046487,1704297127649,-1274.0833716,0.00034976,2]
[310046488,1704297127659,-2281.3172023,0.00034976,2]
[310046489,1704297127670,-1929.2262798,0.00034976,2]
[310046490,1704297127681,-3970.6103572,0.00034976,2]
[310046491,1704297127693,-3357.7995382,0.00034976,2]
[310046492,1704297127704,-31622.3319086,0.00034976,2]
[310046493,1704297127716,-26741.8461963,0.00034976,2]
[310046494,1704297127727,-987.4816807,0.00034976,2]
[310046495,1704297127737,-835.0770368,0.00034976,2]
[310046496,1704297127747,-10651.3875058,0.00034976,2]
[310046497,1704297127758,-9007.4877235,0.00034976,2]
[310046498,1704297127768,-129226.9676195,0.00034976,2]
[310046499,1704297127778,-109282.5065047,0.00034976,2]
[310046500,1704297127788,-1728.57749933,0.0003499,2]
[310046501,1704297127798,-9442.86391837,0.0003499,5]
[310046502,1704297127808,-1490.0,0.0003499,8]
[310046503,1704297127818,-289.05865858,0.00034998,4]
[310046504,1704297127829,-567.40103,0.00034998,2]
[310046505,1704297127840,-35630.25714037,0.00034999,2]
[310046506,1704297127852,-15603.54274255,0.00034999,2]
[310046507,1704297127862,-100000.0,0.00035,5]
[310046508,1704297127874,-100000.0,0.00035,4]
[310046509,1704297127885,-100000.0,0.00035,3]
[310046510,1704297127896,-100000.0,0.00035,2]
[310046511,1704297127906,-5000.0,0.00035,3]
[310046512,1704297127915,-928.50644835,0.00035,2]
[310046513,1704297127925,-3199.0,0.00035,6]
[310046514,1704297127934,-57146.52478764,0.00035,4]
[310046515,1704297127943,-22174.43589287,0.00035,4]
[310046516,1704297127953,-2000.0,0.00035,2]
[310046517,1704297127963,-2000.0,0.00035,2]
[310046518,1704297127972,-2000.0,0.00035,2]
[310046519,1704297127982,-2000.0,0.00035,2]
[310046520,1704297127992,-2000.0,0.00035,2]
[310046521,1704297128001,-2000.0,0.00035,2]
[310046522,1704297128011,-2000.0,0.00035,2]
[310046523,1704297128021,-1818.08,0.00035,2]
[310046524,1704297128030,-1998.0,0.00035,7]
[310046525,1704297128040,-794.28,0.00035,5]
[310046526,1704297128050,-1000.0,0.00035,2]
[310046527,1704297128060,-25766.877053,0.00035,7]
[310046528,1704297128069,-929.32627876,0.00035,4]
[310046529,1704297128079,-2500.0,0.00035,2]
[310046530,1704297128089,-201.30588259,0.00035,2]
[310046531,1704297128099,-500.0,0.00035,10]
[310046532,1704297128108,-939.57321718,0.00035,14]
[310046533,1704297128122,-15759.96912791,0.00035,7]
[310046534,1704297128132,-617.74542381,0.00035,4]
[310046535,1704297128142,-90000.0,0.00035,2]
[310046536,1704297128152,-1023.0,0.00035,5]
[310046537,1704297128161,-2500.03541667,0.00035,4]
[310046538,1704297128171,-897.39,0.00035,5]
[310046539,1704297128181,-450.43034861,0.00035,4]
[310046540,1704297128191,-4929.0,0.00035,3]
[310046542,1704297128201,-192.55408847,0.00035,4]
[310046543,1704297128211,-200.0,0.00035,5]
[310046544,1704297128221,-64746.61526222,0.00035,4]
[310046546,1704297128230,-185.11263237,0.00035,4]
[310046547,1704297128241,-1255.27252924,0.00035,4]
[310046548,1704297128251,-76514.08467358,0.00035,2]
[310046550,1704297128261,-155.79195637,0.00035,4]
[310046551,1704297128271,-7450.0,0.00035,10]
[310046552,1704297128281,-10629.94139554,0.00035,2]
[310046554,1704297128291,-3900.0,0.00035,7]
[310046555,1704297128301,-487300.88607155,0.00035,7]
[310046556,1704297128312,-425.0,0.00035,2]
[310046558,1704297128322,-200.0,0.00035,5]
[310046559,1704297128332,-150.0,0.00035,7]
[310046561,1704297128343,-1000.0,0.00035,2]
[310046562,1704297128354,-600.0,0.00035,36]
[310046563,1704297128366,-4048.0,0.00035,5]
[310046564,1704297128378,-151.0,0.00035,2]
[310046565,1704297128389,-723.43565063,0.00035,6]
[310046566,1704297128399,-10189.32721987,0.00035,7]
[310046567,1704297128413,-200.0,0.00035,5]
[310046568,1704297128424,-200.0,0.00035,5]
[310046569,1704297128434,-1000.0,0.00035,120]
[310046570,1704297128444,-1000.0,0.00035,120]
[310046571,1704297128454,-1407.34669714,0.00035,4]
[310046572,1704297128463,-5000.0,0.00035,10]
[310046573,1704297128473,-1000.0,0.00035,2]
[310046574,1704297128484,-6252020.40029427,0.00035,2]
[310046575,1704297128493,-155.0,0.00035,2]
[310046576,1704297128503,-650.0,0.00035,2]
[310046577,1704297128513,-2000.0,0.00035,2]
[310046578,1704297128522,-759.724914,0.00035,3]
[310046579,1704297128532,-885.19994283,0.00035,2]
[310046580,1704297128541,-885.19994283,0.00035,2]
[310046581,1704297128550,-885.19994283,0.00035,2]
[310046582,1704297128560,-3299.9168764,0.00035,2]
[310046583,1704297128570,-168599.0,0.00035,2]
[310046584,1704297128580,-209.94458064,0.00035,2]
[310046585,1704297128590,-4074.92336479,0.00035,2]
[310046586,1704297128601,-154.995414,0.00035,2]
[310046587,1704297128610,-118137.34377031,0.00035,2]
[310046588,1704297128622,-118137.34377031,0.00035,2]
[310046589,1704297128632,-118137.34377031,0.00035,2]
[310046590,1704297128642,-118137.34377031,0.00035,2]
[310046591,1704297128652,-118137.34377031,0.00035,2]
[310046592,1704297128661,-1109.67224907,0.00035,2]
[310046593,1704297128671,-1109.67224907,0.00035,2]
[310046594,1704297128681,-1109.67224907,0.00035,2]
[310046595,1704297128691,-1450.0,0.00035,3]
[310046596,1704297128701,-500.0,0.00035,2]
[310046597,1704297128711,-5000.0,0.00035,2]
[310046598,1704297128721,-7000.0,0.00035,9]
[310046599,1704297128731,-302.59894334,0.00035,5]
[310046600,1704297128741,-4311.0,0.00035,4]
[310046601,1704297128751,-297.99212467,0.00035,2]
[310046602,1704297128761,-2014.43849457,0.00035,3]
[310046603,1704297128771,-5000.0,0.00035,2]
[310046604,1704297128780,-1000.0,0.00035016,7]
[310046605,1704297128790,-1000.0,0.00035016,7]
[310046606,1704297128800,-1000.0,0.00035016,7]
[310046607,1704297128810,-1000.0,0.00035016,7]
[310046608,1704297128819,-1000.0,0.00035016,7]
[310046609,1704297128830,-1000.0,0.00035016,7]
[310046610,1704297128840,-1000.0,0.00035016,7]
[310046611,1704297128851,-1000.0,0.00035016,7]
[310046612,1704297128863,-153.84,0.00035019,2]
[310046613,1704297128876,-567.40103,0.00035048,2]
[310046614,1704297128886,-151556.907706,0.00035068,2]
[310046616,1704297128897,-25304.182665,0.00035068,2]
[310046617,1704297128906,-1245.32161,0.00035068,2]
[310046618,1704297128916,-69241.793902,0.00035068,2]
[310046619,1704297128926,-11830.555297,0.00035068,2]
[310046620,1704297128935,-456.122772,0.00035071,2]
[310046621,1704297128945,-467.327823,0.00035071,2]
[310046622,1704297128954,-456.073485,0.00035071,2]
[310046623,1704297128964,-228.036742,0.00035071,2]
[310046624,1704297128973,-567.40103,0.00035098,2]
[310046625,1704297129054,-173.7080482,0.00035145,2]
[310046626,1704297129064,-22264.46742579,0.00035145,2]
[310046627,1704297129073,-4889.29513095,0.00035145,2]
[310046628,1704297129083,-16097.35807731,0.00035145,2]
[310046629,1704297129092,-9647.805939,0.00035145,2]
[310046630,1704297129102,-11704.69515,0.00035145,2]
[310046631,1704297129111,-298767.02117941,0.00035145,2]
[310046632,1704297129123,-70225.13906298,0.00035145,2]
[310046633,1704297129132,-3120.67001893,0.00035145,2]
[310046634,1704297129141,-567.40103,0.00035148,2]
[310046635,1704297129150,-245.57531617,0.00035167,2]
[310046636,1704297129159,-245.57531617,0.00035167,2]
[310046637,1704297129169,-245.57531617,0.00035167,2]
[310046638,1704297129179,-245.57531617,0.00035167,2]
[310046639,1704297129188,-245.57531617,0.00035167,2]
[310046640,1704297129198,-245.57531617,0.00035167,2]
[310046641,1704297129208,-245.57531617,0.00035167,2]
[310046642,1704297129217,-245.57531617,0.00035167,2]
[310046643,1704297129226,-245.57531617,0.00035167,2]
[310046644,1704297129236,-245.57531617,0.00035167,2]
[310046645,1704297129244,-245.57531617,0.00035167,2]
[310046646,1704297129254,-245.57531617,0.00035167,2]
[310046647,1704297129263,-245.57531617,0.00035167,2]
[310046648,1704297129273,-245.57531617,0.00035167,2]
[310046649,1704297129283,-245.57531617,0.00035167,2]
[310046650,1704297129292,-245.57531617,0.00035167,2]
[310046651,1704297129302,-245.57531617,0.00035167,2]
[310046652,1704297129311,-245.57531617,0.00035167,2]
[310046653,1704297129320,-245.57531617,0.00035167,2]
[310046654,1704297129330,-245.57531617,0.00035167,2]
[310046655,1704297129339,-245.57531617,0.00035167,2]
[310046656,1704297129349,-245.57531617,0.00035167,2]
[310046657,1704297129359,-245.57531617,0.00035167,2]
[310046658,1704297129373,-245.57531617,0.00035167,2]
[310046659,1704297129382,-245.57531617,0.00035167,2]
[310046660,1704297129392,-245.57531617,0.00035167,2]
[310046661,1704297129402,-245.57531617,0.00035167,2]
[310046662,1704297129413,-245.57531617,0.00035167,2]
[310046663,1704297129423,-245.57531617,0.00035167,2]
[310046664,1704297129434,-245.57531617,0.00035167,2]
[310046665,1704297129443,-245.57531617,0.00035167,2]
[310046666,1704297129454,-567.40103,0.00035198,2]
[310046667,1704297129464,-300.0,0.00035238,2]
[310046668,1704297129473,-300.0,0.00035238,2]
[310046669,1704297129483,-300.0,0.00035238,2]
[310046670,1704297129493,-300.0,0.00035238,2]
[310046671,1704297129503,-300.0,0.00035238,2]
[310046672,1704297129512,-300.0,0.00035238,2]
[310046673,1704297129521,-300.0,0.00035238,2]
[310046674,1704297129530,-300.0,0.00035238,2]
[310046675,1704297129540,-300.0,0.00035238,2]
[310046676,1704297129550,-300.0,0.00035238,2]
[310046677,1704297129560,-300.0,0.00035238,2]
[310046678,1704297129570,-300.0,0.00035238,2]
[310046679,1704297129580,-300.0,0.00035238,2]
[310046680,1704297129590,-300.0,0.00035238,2]
[310046681,1704297129601,-300.0,0.00035238,2]
[310046682,1704297129610,-300.0,0.00035238,2]
[310046683,1704297129622,-300.0,0.00035238,2]
[310046684,1704297129632,-300.0,0.00035238,2]
[310046685,1704297129642,-300.0,0.00035238,2]
[310046686,1704297129652,-300.0,0.00035238,2]
[310046687,1704297129662,-150.0,0.00035246,7]
[310046688,1704297129672,-150.0,0.00035246,7]
[310046689,1704297129682,-193.63893937,0.00035246,7]
[310046690,1704297129692,-150.0,0.00035246,7]
[310046691,1704297129702,-150.0,0.00035246,7]
[310046692,1704297129713,-150.0,0.00035246,7]
[310046693,1704297129723,-150.0,0.00035246,7]
[310046694,1704297129734,-150.0,0.00035246,7]
[310046695,1704297129743,-157.61326213,0.00035246,7]
[310046696,1704297129753,-150.0,0.00035246,7]
[310046697,1704297129763,-177.95283274,0.00035246,7]
[310046698,1704297129773,-150.0,0.00035246,7]
[310046699,1704297129783,-567.40103,0.00035248,2]
[310046700,1704297129792,-154.245598,0.00035261,2]
[310046701,1704297129802,-2361.759571,0.00035261,2]
[310046702,1704297129812,-1000.0,0.00035271,5]
[310046703,1704297129823,-1000.0,0.00035271,5]
[310046704,1704297129835,-1000.0,0.00035271,2]
[310046705,1704297129845,-1000.0,0.00035271,2]
[310046706,1704297129854,-1000.0,0.00035271,3]
[310046707,1704297129864,-1000.0,0.00035271,2]
[310046708,1704297129874,-1000.0,0.00035271,2]
[310046709,1704297129884,-1000.0,0.00035271,3]
[310046710,1704297129893,-1000.0,0.00035271,5]
[310046711,1704297129902,-1000.0,0.00035271,2]
[310046712,1704297129912,-1000.0,0.00035271,2]
[310046713,1704297129923,-1000.0,0.00035271,3]
[310046714,1704297129933,-1013.98,0.00035271,2]
[310046715,1704297129943,-1000.0,0.00035271,2]
[310046716,1704297129953,-1000.0,0.00035271,2]
[310046717,1704297129963,-892.99,0.00035271,2]
[310046718,1704297129974,-1000.0,0.00035271,5]
[310046719,1704297129984,-1000.0,0.00035271,2]
[310046720,1704297129993,-1000.0,0.00035271,2]
[310046721,1704297130003,-1000.0,0.00035271,2]
[310046722,1704297130012,-1000.0,0.00035271,2]
[310046723,1704297130021,-1000.0,0.00035271,3]
[310046724,1704297130031,-1000.0,0.00035271,2]
[310046725,1704297130040,-567.40103,0.00035298,2]
[310046726,1704297130050,-716.0,0.000353,24]
[310046727,1704297130060,-157.25,0.000353,3]
[310046728,1704297130070,-150.8337322,0.00035319,2]
[310046729,1704297130080,-5000.0,0.0003533,2]
[310046730,1704297130090,-212179.670789,0.00035342,2]
[310046731,1704297130099,-35425.855731,0.00035342,2]
[310046732,1704297130109,-1743.450254,0.00035342,2]
[310046733,1704297130120,-96938.511463,0.00035342,2]
[310046734,1704297130130,-16562.777417,0.00035342,2]
[310046735,1704297130139,-567.40103,0.00035348,2]
[310046736,1704297130149,-567.40103,0.00035398,2]
[310046737,1704297130158,-222.22222,0.00035398,2]
[310046738,1704297130167,-5200.0,0.000354,9]
[310046739,1704297130177,-5200.0,0.000354,10]
[310046740,1704297130186,-5200.0,0.000354,11]
[310046741,1704297130195,-150.0,0.000354,4]
[310046742,1704297130204,-2009.6,0.000354,2]
[310046743,1704297130213,-5000.0,0.000354,5]
[310046744,1704297130223,-317.84,0.000354,2]
[310046745,1704297130232,-151.74559818,0.00035429,30]
[310046746,1704297130242,-567.40103,0.00035448,2]
[310046747,1704297130251,-1042.35199166,0.0003545,2]
[310046748,1704297130260,-631.38,0.00035455,30]
[310046749,1704297130271,-2542.78,0.00035455,2]
[310046750,1704297130280,-150.0,0.00035468,2]
[310046751,1704297130290,-150.0,0.00035468,2]
[310046752,1704297130300,-65000.000004,0.0003547,5]
[310046753,1704297130309,-212.0,0.0003547,2]
[310046754,1704297130319,-204.0,0.0003547,2]
[310046755,1704297130328,-300.66,0.0003547,2]
[310046756,1704297130338,-416.87,0.0003547,2]
[310046757,1704297130348,-150.0,0.0003547,2]
[310046758,1704297130357,-416.87,0.0003547,2]
[310046759,1704297130368,-150.0,0.0003547,2]
[310046760,1704297130377,-150.0,0.0003547,2]
[310046761,1704297130387,-313.44,0.0003547,2]
[310046762,1704297130396,-267.79,0.0003547,2]
[310046763,1704297130406,-150.0,0.0003547,2]
[310046764,1704297130416,-313.44,0.0003547,2]
[310046765,1704297130425,-150.0,0.0003547,2]
[310046766,1704297130435,-75000.0,0.00035479,15]
[310046767,1704297130445,-4263.44165618,0.00035488,2]
[310046768,1704297130454,-152.0,0.00035489,6]
[310046769,1704297130464,-153.0,0.0003549,10]
[310046770,1704297130474,-7464.18280949,0.00035497,2]
[310046771,1704297130484,-4298.0882348,0.00035497,2]
[310046772,1704297130494,-1814.09048923,0.00035497,2]
[310046773,1704297130503,-4715.70550631,0.00035497,2]
[310046774,1704297130513,-666.40103,0.00035498,2]
[310046775,1704297130523,-222.22222,0.00035498,2]
[310046776,1704297130532,-456.122772,0.00035498,2]
[310046777,1704297130543,-467.327823,0.00035498,2]
[310046778,1704297130552,-456.073485,0.00035498,2]
[310046779,1704297130562,-228.036742,0.00035498,2]
[310046780,1704297130572,-500.0,0.000355,2]
[310046781,1704297130582,-500.0,0.000355,2]
[310046782,1704297130592,-500.0,0.000355,2]
[310046783,1704297130601,-500.0,0.000355,2]
[310046784,1704297130611,-500.0,0.000355,2]
[310046785,1704297130622,-500.0,0.000355,2]
[310046786,1704297130632,-500.0,0.000355,2]
[310046787,1704297130642,-500.0,0.000355,2]
[310046788,1704297130651,-500.0,0.000355,2]
[310046789,1704297130661,-500.0,0.000355,2]
[310046790,1704297130671,-212.4821385,0.000355,2]
[310046791,1704297130681,-256.09608845,0.000355,2]
[310046792,1704297130691,-184126.89125186,0.000355,2]
[310046793,1704297130700,-13032.08564566,0.000355,4]
[310046794,1704297130710,-155.0,0.000355,4]
[310046795,1704297130719,-3406.35004989,0.000355,3]
[310046796,1704297130728,-1969.24923612,0.000355,2]
[310046797,1704297130738,-1881.1419446,0.000355,10]
[310046798,1704297130748,-4863.35921072,0.000355,10]
[310046799,1704297130757,-3017.26823052,0.000355,10]
[310046800,1704297130768,-2151.26238592,0.000355,10]
[310046801,1704297130778,-5092.62339087,0.000355,10]
[310046802,1704297130788,-3159.33520123,0.000355,10]
[310046803,1704297130798,-436.76,0.00035529,2]
[310046804,1704297130807,-500.0,0.00035572,10]
[310046805,1704297130817,-500.0,0.00035572,7]
[310046806,1704297130832,-500.0,0.00035572,7]
[310046807,1704297130842,-167.05,0.00035584,2]
[310046808,1704297130852,-166.99,0.00035584,2]
[310046809,1704297130863,-222.22222,0.00035598,2]
[310046810,1704297130874,-522.99562634,0.000356,2]
[310046811,1704297130884,-1000.0,0.000356,2]
[310046812,1704297130895,-189126.63893408,0.000356,7]
[310046813,1704297130906,-1929.26178147,0.000356,7]
[310046814,1704297130916,-2000.0,0.000356,2]
[310046815,1704297130925,-399.0,0.000356,2]
[310046816,1704297130935,-682.79162789,0.000356,2]
[310046817,1704297130945,-2780.0,0.000356,2]
[310046818,1704297130955,-500.0,0.000356,2]
[310046819,1704297130965,-8000.0,0.000356,2]
[310046820,1704297130975,-750.0,0.000356,2]
[310046821,1704297130984,-1000.0,0.000356,2]
[310046822,1704297130995,-150.0,0.00035602,7]
[310046823,1704297131004,-150.0,0.00035616,2]
[310046824,1704297131014,-300.0,0.00035616,7]
[310046825,1704297131023,-450.0,0.00035616,12]
[310046826,1704297131032,-600.0,0.00035616,17]
[310046827,1704297131042,-750.0,0.00035616,22]
[310046828,1704297131051,-900.0,0.00035616,27]
[310046829,1704297131060,-1050.0,0.00035616,32]
[310046830,1704297131070,-1183.90196029,0.00035616,37]
[310046831,1704297131080,-500.0,0.00035616,2]
[310046833,1704297131090,-500.0,0.00035616,2]
[310046834,1704297131100,-500.0,0.00035616,2]
[310046835,1704297131109,-500.0,0.00035616,2]
[310046836,1704297131120,-500.0,0.00035616,2]
[310046837,1704297131129,-500.0,0.00035616,2]
[310046838,1704297131138,-500.0,0.00035616,2]
[310046839,1704297131148,-500.0,0.00035616,2]
[310046840,1704297131157,-500.0,0.00035616,2]
[310046841,1704297131166,-500.0,0.00035616,2]
[310046842,1704297131175,-500.0,0.00035616,2]
[310046843,1704297131186,-500.0,0.00035616,2]
[310046844,1704297131195,-500.0,0.00035616,2]
[310046845,1704297131205,-500.0,0.00035616,2]
[310046846,1704297131214,-500.0,0.00035616,2]
[310046847,1704297131224,-500.0,0.00035616,2]
[310046848,1704297131233,-500.0,0.00035616,2]
[310046849,1704297131242,-500.0,0.00035616,2]
[310046850,1704297131252,-500.0,0.00035616,2]
[310046851,1704297131261,-500.0,0.00035616,2]
[310046852,1704297131271,-1000.0,0.00035616,2]
[310046853,1704297131280,-1000.0,0.00035616,2]
[310046854,1704297131289,-1000.0,0.00035616,2]
[310046855,1704297131299,-1000.0,0.00035616,2]
[310046856,1704297131308,-1000.0,0.00035616,2]